{"text_format":"1","workbook":"xlsx","n_sheets":6,"sheets":["Титул","Сводные","План уч проц","Лист3","Перечень кабинетов","Календарный график"],"not_rendered":{"charts":0,"images":0,"macros":1,"external_links":1,"defined_names":20,"comments":0,"pivot_tables":0},"unopened":[],"bounds":{"document_bytes":16777216,"sheet_cells":100000,"rows_first":2000,"rows_last":500,"rows_between":2000,"halvings":0,"cell_chars":16384,"cell_head_chars":4096},"cells_cut":0,"cells_raw":0,"read":"whole","date_system":"1900"}

{"sheet":"Титул","index":0,"n_rows":31,"n_cols":47,"rows_kept":31,"cut":false,"hidden":false,"merged":[[30,26,30,29],[30,31,30,39],[16,5,16,10],[3,36,3,46],[2,36,2,45],[29,26,29,29],[29,30,29,46],[26,26,26,45],[25,26,25,45],[27,26,27,34],[27,35,27,45],[28,26,28,37],[28,44,28,46],[28,42,28,43],[28,39,28,40],[1,36,1,45],[19,9,19,36],[24,26,24,33],[24,34,24,45],[4,36,4,46],[5,37,5,38],[5,43,5,44],[11,14,11,24],[12,1,12,42],[5,40,5,42],[17,11,17,37],[13,2,13,44],[14,9,14,40],[16,11,16,37]]}
[]
[null,null,null,null,null,null,null,null,null,null,null,null,null,null,null,null,null,null,null,null,null,null,null,null,null,null,null,null,null,null,null,null,null,null,null,null,"Утверждаю:"]
[null,null,null,null,null,null,null,null,null,null,null,null,null,null,null,null,null,null,null,null,null,null,null,null,null,null,null,null,null,null,null,null,null,null,null,null,"Директор ______________"]
[null,null,null,null,null,null,null,null,null,null,null,null,null,null,null,null,null,null,null,null,null,null,null,null,null,null,null,null,null,null,null,null,null,null,null,null,"ГОУ СПО \"МППК\""]
[null,null,null,null,null,null,null,null,null,null,null,null,null,null,null,null,null,null,null,null,null,null,null,null,null,null,null,null,null,null,null,null,null,null,null,null,"М.Н. Верхотурцев"]
[null,null,null,null,null,null,null,null,null,null,null,null,null,null,null,null,null,null,null,null,null,null,null,null,null,null,null,null,null,null,null,null,null,null,null,null,"«",null,null,"»",null,null,null,201,null,null,"г"]
[]
[]
[]
[]
[]
[null,null,null,null,null,null,null,null,null,null,null,null,null,null,"УЧЕБНЫЙ ПЛАН"]
[null,"Государственного образовательного учреждения среднего профессионального образования "]
[null,null,"«Мишкинский профессионально-педагогический колледж»"]
[null,null,null,null,null,null,null,null,null,"по  специальности среднего профессионального образования"]
[]
[null,null,null,null,null,51001,null,null,null,null,null,"Профессиональное обучение (по отраслям)"]
[null,null,null,null,null,null,null,null,null,null,null,"Лесное и лесопарковое хозяйство"]
[]
[null,null,null,null,null,null,null,null,null,"       по программе углубленной подготовки"]
[]
[]
[]
[]
[null,null,null,null,null,null,null,null,null,null,null,null,null,null,null,null,null,null,null,null,null,null,null,null,null,null,"Квалификация:",null,null,null,null,null,null,null,"специалист лесного и лесопаркового хозяйства,"]
[null,null,null,null,null,null,null,null,null,null,null,null,null,null,null,null,null,null,null,null,null,null,null,null,null,null,"мастер производственного обучения"]
[]
[null,null,null,null,null,null,null,null,null,null,null,null,null,null,null,null,null,null,null,null,null,null,null,null,null,null,"Форма обучения-  ",null,null,null,null,null,null,null,null,"очная"]
[null,null,null,null,null,null,null,null,null,null,null,null,null,null,null,null,null,null,null,null,null,null,null,null,null,null,"Нормативный срок обучения- ",null,null,null,null,null,null,null,null,null,null,null,null,4,null,"г",10,null,"мес"]
[null,null,null,null,null,null,null,null,null,null,null,null,null,null,null,null,null,null,null,null,null,null,null,null,null,null,"На базе",null,null,null,"основного общего образования"]
[null,null,null,null,null,null,null,null,null,null,null,null,null,null,null,null,null,null,null,null,null,null,null,null,null,null,"Профиль",null,null,null,null,"технический"]

{"sheet":"Сводные","index":1,"n_rows":13,"n_cols":11,"rows_kept":13,"cut":false,"hidden":false,"merged":[[2,7,4,7],[2,8,4,8],[3,3,4,3],[0,0,0,8],[2,0,4,0],[2,1,4,1],[2,2,4,2],[2,3,2,4],[2,5,4,5],[2,6,4,6]]}
["Сводные данные по бюджету времени (в неделях)"]
[]
["Курсы","Обучение по дисциплинам и междисциплинарным курсам","Учебная практика","Производственная практика",null,"Промежуточная аттестация","Государственная итоговая аттестация","Каникулы","Всего"]
[null,null,null,"по профилю специальности","преддипломная"]
[null,null,null,null,"(для СПО)"]
[1,2,3,4,5,6,7,8,9]
["I курс",{"$f":"I7-H7-G7-F7-E7-D7-C7","v":39},null,null,null,2,null,11,52]
["II курс",{"$f":"I8-H8-G8-F8-E8-D8-C8","v":39},2,null,null,1,null,10,52]
["III курс",33,4,3,null,2,null,10,52]
["VI курс",28,4,8,null,2,null,10,52]
["V курс",21,1,3,8,2,6,2,43]
["Всего",{"$f":"SUM(B7:B11)","v":160},11,14,8,9,6,43,251]
[null,null,null,null,null,null,null,null,null,null,"Удалить строку"]

{"sheet":"План уч проц","index":2,"n_rows":109,"n_cols":22,"rows_kept":109,"cut":false,"hidden":false,"merged":[[98,0,98,1],[104,0,104,6],[102,0,103,6],[8,7,11,7],[8,8,11,8],[8,5,11,5],[99,0,99,1],[2,0,7,0],[8,0,11,0],[8,1,11,1],[8,4,11,4],[8,3,11,3],[8,2,11,2],[2,2,6,4],[2,1,7,1],[6,18,6,19],[6,20,6,21],[2,12,5,21],[6,5,7,5],[6,6,7,6],[6,12,6,13],[6,14,6,15],[6,16,6,17],[2,5,5,10],[6,7,6,10],[7,8,7,10],[2,11,11,11],[8,6,11,6],[8,9,11,9],[8,10,11,10],[108,8,108,11],[108,0,108,6],[102,7,108,7],[106,0,106,6],[107,0,107,6],[105,0,105,6],[102,8,102,11],[103,8,103,11],[104,8,104,11],[105,8,105,11],[106,8,106,11],[107,8,107,11]]}
[]
[null,null,null,null,null,null,null,null,null,null,null,null,null,null,null,null,null,null,"Техник"]
["   Индекс","Наименование циклов, дисциплин, профессиональных модулей, МДК, практик","Форма промежуточной аттестации",null,null,"Учебная нагрузка обучающихся (час.)",null,null,null,null,null,"Учебная и производственная практика","Распределение обязательной нагрузки по курсам и семестрам[2] (час. в семестр)"]
[]
[]
[]
[null,null,null,null,null,"максимальная","самостоятельная работа","Обязательная аудиторная",null,null,null,null,"I курс",null,"II курс",null,"III курс",null,"IV курс",null,"V курс"]
[null,null,"З","ДЗ","Э",null,null,"всего занятий","в т. ч.",null,null,null,"1 семестр","2 семестр","3 семестр","4 семестр","5 семестр","6 семестр","7 семестр","8 семестр","9 семестр","10 семестр"]
[null,null,null,null,null,null,null,null,"лекций, уроков, семинаров","лаб. и практ. занятий","Курсовая",null,"сем.","сем.","сем.","сем.","сем.","сем.","сем.","сем.","сем.","сем."]
[null,null,null,null,null,null,null,null,null,null,null,null,17,22,17,24,16,24,16,24,16,17]
[null,null,null,null,null,null,null,null,null,null,null,null,17,22,17,22,13,20,10,18,14,7]
[null,null,null,null,null,null,null,null,null,null,null,null,"нед","нед","нед","нед","нед","нед","нед","нед","нед","нед"]
[1,2,3,4,5,6,7,8,9,10,11,12,13,14,15,16,17,18,19,20,21,22]
["О.00","Общеобразовательный цикл",null,null,null,null,null,{"$f":"SUM(H15:H26)","v":1404},null,null,null,null,{"$f":"SUM(M15:M26)","v":612},{"$f":"SUM(N15:N26)","v":792},{"$f":"SUM(O15:O98)/O10","v":137.1764705882353},{"$f":"SUM(P15:P98)/P10","v":136.5},129.375,135.66666666666666,121,138,147.5,71.294117647058826]
["ОДБ.01","Русский язык",null,null,2,null,null,{"$f":"SUM(M15:R15)","v":78},null,null,null,null,34,44]
["ОДБ.02","Литература",null,2,null,null,null,{"$f":"SUM(M16:R16)","v":117},null,null,null,null,51,66]
["ОДБ.03","Иностранный язык",null,2,null,null,null,117,null,null,null,null,51,66]
["ОДБ.04","История",null,2,null,null,null,78,null,null,null,null,34,44]
["ОДБ.05","Обществознание (включая экономику и право)",null,2,null,null,null,78,null,null,null,null,34,44]
["ОДБ.06","Химия",null,2,null,null,null,78,null,null,null,null,34,44]
["ОДБ.07","Биология",null,2,null,null,null,78,null,null,null,null,34,44]
["ОДБ.08","Основы безопасности жизнедеятельности ",null,2,null,null,null,78,null,null,null,null,34,44]
["ОДБ.09","Физическая культура",null,2,null,null,null,117,null,null,null,null,51,66]
["ОДП.01","Математика",null,null,2,null,null,234,null,null,null,null,102,132]
["ОДП.02","Физика",null,null,2,null,null,195,null,null,null,null,85,110]
["ОДП.03","Информатика и ИКТ",null,2,null,null,null,156,null,null,null,null,68,88]
[null,"Всего по циклам ОПОП",null,null,null,{"$f":"F28+F34+F38","v":6534},2178,{"$f":"H28+H34+H38","v":4356},{"$f":"I28+I34+I38","v":2206},2150,60,null,null,null,{"$f":"O28+O34+O38","v":612},{"$f":"P28+P34+P38","v":792},468,720,360,648,504,252]
["ОГСЭ.00","Общий гуманитарный и социально-экономический цикл ",null,null,null,{"$f":"SUM(F29:F33)","v":942},314,628,104,524,null,null,null,null,{"$f":"SUM(O29:O33)","v":116},{"$f":"SUM(P29:P33)","v":88},52,176,40,72,56,28]
["ОГСЭ.01","Основы философии",null,3,null,54,{"$f":"F29-H29","v":6},{"$f":"SUM(O29:V29)","v":48},48,null,null,null,null,null,48]
["ОГСЭ.02","История",null,null,6,54,6,{"$f":"SUM(O30:V30)","v":48},48,null,null,null,null,null,null,null,null,48]
["ОГСЭ.03","Психология общения",null,6,null,54,6,{"$f":"SUM(O31:V31)","v":48},6,42,null,null,null,null,null,null,null,48]
["ОГСЭ.04","Иностранный язык",null,10,null,296,54,{"$f":"SUM(O32:V32)","v":242},null,242,null,null,null,null,34,44,26,40,20,36,28,14]
["ОГСЭ.05","Физическая культура","3,4,5,6,7,8,9",10,null,484,242,{"$f":"SUM(O33:V33)","v":242},2,240,null,null,null,null,34,44,26,40,20,36,28,14]
["ЕН.00","Математический и общий естественнонаучный цикл",null,null,null,{"$f":"SUM(F35:F37)","v":315},{"$f":"SUM(G35:G37)","v":105},210,90,120,null,null,null,null,{"$f":"SUM(O35:O37)","v":48},{"$f":"SUM(P35:P37)","v":42},86,34,0,0,0,0]
["ЕН.01","Математика",null,3,null,{"$f":"ROUNDDOWN(H35*1.5,0)","v":72},{"$f":"F35-H35","v":24},{"$f":"SUM(O35:V35)","v":48},20,28,null,null,null,null,48]
["ЕН.02","Информатика и информационно-коммуникационные технологии в профессиональной деятельности",null,6,null,114,{"$f":"F36-H36","v":38},{"$f":"SUM(O36:V36)","v":76},4,72,null,null,null,null,null,null,42,34]
["ЕН.03","Экологические основы природопользования",null,5,null,129,43,{"$f":"SUM(O37:V37)","v":86},66,20,null,null,null,null,null,42,44]
["П.00","Профессиональный цикл ",null,null,null,{"$f":"F39+F57","v":5277},{"$f":"G39+G57","v":1759},{"$f":"H39+H57","v":3518},{"$f":"I39+I57","v":2012},{"$f":"J39+J57","v":1506},60,900,null,null,{"$f":"O39+O57","v":448},{"$f":"P39+P57","v":662},330,510,320,576,448,224]
["ОП.00","Общепрофессиональные дисциплины",null,null,null,{"$f":"SUM(F40:F56)","v":1875},625,{"$f":"SUM(H40:H56)","v":1250},{"$f":"SUM(I40:I56)","v":794},456,null,null,null,null,{"$f":"SUM(O40:O56)","v":400},{"$f":"SUM(P40:P56)","v":496},102,68,0,0,120,64]
["ОП.01","Общая и профессиональная педагогика",null,null,4,147,49,{"$f":"SUM(O40:V40)","v":98},64,34,null,null,null,null,32,66]
["ОП.02","Общая и профессиональная психология",null,null,4,147,49,98,64,34,null,null,null,null,32,66]
["ОП.03","Возрастная анатомия, физиология и гигиена",null,null,4,66,22,44,32,12,null,null,null,null,null,44]
["ОП.04","Правовое обеспечение профессиональной деятельности",null,10,null,96,32,64,44,20,null,null,null,null,null,null,null,null,null,null,null,64]
["ОП.05","Безопасность жизнедеятельности",null,6,null,102,34,68,20,48,null,null,null,null,null,68]
["ОП.06","Геодезия",null,4,null,180,60,120,70,50,null,null,null,null,null,null,52,68]
["ОП.07","Ботаника",null,null,4,180,60,120,90,30,null,null,null,null,null,90,30]
["ОП.08","Почвоведение",null,3,null,120,40,80,50,30,null,null,null,null,null,80]
["ОП.09","Дендрология \nи  лесоведение\n",null,7,null,180,60,120,80,40,null,null,null,null,null,null,null,null,null,null,120]
["ОП.10","Основы лесной энтомологии, фитопатологии и биологии лесных зверей и птиц",null,3,null,90,30,60,38,22,null,null,null,null,60]
["ОП.11","Основы древесиноведения и лесного товароведения",null,null,4,162,54,108,66,42,null,null,null,null,66,42]
["ОП.12","Основы устройств тракторов и автомобилей",null,5,null,90,30,60,30,30,null,null,null,null,null,40,20]
["ОП.13","Правовые и организационные основы государственного управления лесами",null,3,null,60,20,40,30,10,null,null,null,null,40]
["ОП.14","Охрана труда",null,3,null,48,16,32,22,10,null,null,null,null,32]
["ОП.15","Управление качеством",null,3,null,48,16,32,22,10,null,null,null,null,32]
["ОП.16","Русский язык и культура речи",null,3,null,48,16,32,22,10,null,null,null,null,32]
["ОП.17","Экономика организации и менеджмент",null,3,null,111,37,74,50,24,null,null,null,null,74]
["ПМ.00","Профессиональные модули",null,null,null,{"$f":"F58+F62+F66+F86+F73+F78+F70+F82+F91+F96","v":3402},1134,{"$f":"H58+H62+H66+H86+H73+H78+H70+H82+H91+H96","v":2268},{"$f":"I58+I62+I66+I86+I73+I78+I70+I82+I91+I96","v":1218},1050,60,900,null,null,{"$f":"O58+O62+O66+O70+O73+O78+O82+O86+O91+O96","v":48},{"$f":"P58+P62+P66+P70+P73+P78+P82+P86+P91+P96","v":166},228,442,320,576,328,160]
["ПМ.01","Организация учебно-производственного процесса",null,null,"5(к)",{"$f":"F59","v":270},{"$f":"G59","v":90},{"$f":"H59","v":180},108,72,30,72,null,null,{"$f":"O59","v":48},{"$f":"P59","v":102},30,0,0,0,0,0]
["МДК.01.01","Методика профессионального обучения (по отраслям)",null,5,null,270,90,{"$f":"SUM(O59:V59)","v":180},108,72,30,null,null,null,48,102,30]
["УП.01","Учебная практика",null,null,null,null,null,null,null,null,null,{"$f":"SUM(N60:W60)","v":36},null,null,null,36]
["ПП.01","Производственная практика",5,null,null,null,null,null,null,null,null,{"$f":"SUM(N61:W61)","v":36},null,null,null,null,36]
["ПМ.02","Педагогическое сопровождение группы обучающихся в урочной и внеурочной деятельности",null,null,"5(к)",{"$f":"F63","v":195},{"$f":"G63","v":65},130,{"$f":"I63","v":78},{"$f":"J63","v":52},null,{"$f":"L64+L65","v":108},null,null,{"$f":"O63","v":0},{"$f":"P63","v":64},66,0,0,0,0,0]
["МДК.02.01","Теоретические и методические основы педагогического сопровождения группы обучающихся в урочной и внеурочной деятельности",null,5,null,195,65,{"$f":"SUM(O63:V63)","v":130},78,52,null,null,null,null,null,64,66]
["УП.02","Учебная практика",null,null,null,null,null,null,null,null,null,{"$f":"SUM(M64:W64)","v":36},null,null,null,36]
["ПП.02","Производственная практика",null,null,null,null,null,null,null,null,null,{"$f":"SUM(M65:W65)","v":72},null,null,null,null,72]
["ПМ.03","Методическое обеспечение учебно-производственного процесса и педагогическое сопровождение группы обучающихся профессиям рабочих (служащих)",null,null,"7(к)",{"$f":"F67","v":198},{"$f":"G67","v":66},132,82,50,null,{"$f":"L68+L69","v":108},null,null,{"$f":"O67","v":0},{"$f":"P67","v":0},0,68,64,0,0]
["МДК.03.01","Теоретические и прикладные аспекты методической работы мастера производственного обучения",null,7,null,198,66,132,82,50,null,null,null,null,null,null,null,68,64]
["УП.03","Учебная практика",null,null,null,null,null,null,null,null,null,{"$f":"SUM(M68:W68)","v":36},null,null,null,null,null,36]
["ПП.04","Производственная практика",null,7,null,null,null,null,null,null,null,{"$f":"SUM(M69:W69)","v":72},null,null,null,null,null,null,72]
["ПМ.04","Участие в организации технологического процесса",null,null,"7(к)",{"$f":"SUM(F71)","v":300},100,{"$f":"SUM(H71)","v":200},{"$f":"SUM(I71)","v":100},{"$f":"SUM(J71)","v":100},30,36,null,null,{"$f":"O71","v":0},{"$f":"P71","v":0},0,106,94,0,0,0]
["МДК.04.01","Организация техногического процесса (по отраслям)",null,7,null,{"$f":"H71*1.5","v":300},{"$f":"F71-H71","v":100},{"$f":"SUM(O71:V71)","v":200},100,100,30,null,null,null,null,null,null,106,94]
["ПП.04","Производственная практика",7,null,null,null,null,null,null,null,null,{"$f":"SUM(M72:W72)","v":36},null,null,null,null,null,null,36]
["ПМ.05","Выполнение работ по одной или нескольким профессиям рабочих, должностям служащих",null,null,"8(к)",{"$f":"SUM(F74:F75)","v":1140},380,{"$f":"SUM(H74:H75)","v":760},{"$f":"SUM(I74:I75)","v":260},500,null,{"$f":"L76+L77","v":252},null,null,{"$f":"O74+O75","v":0},{"$f":"P74+P75","v":0},132,166,66,396,0,0]
["МДК.05.01","Лесовод",null,null,null,{"$f":"ROUNDDOWN(H74*1.5,0)","v":576},{"$f":"F74-H74","v":192},{"$f":"SUM(O74:V74)","v":384},134,250,null,null,null,null,null,null,132,166,26,60]
["МДК.05.02","Рабочий зеленого хозяйства",null,null,null,564,188,376,126,250,null,null,null,null,null,null,null,null,40,336]
["УП.05","Учебная практика",7,null,null,null,null,null,null,null,null,{"$f":"SUM(M76:W76)","v":144},null,null,null,null,null,72,72]
["ПП.05","Производственная практика",null,null,null,null,null,null,null,null,null,{"$f":"SUM(M77:W77)","v":108},null,null,null,null,null,null,null,108]
["ПМ.06","Организация и проведение мероприятий по воспроизводству лесов и лесоразведению",null,null,"9(к)",{"$f":"SUM(F79:F80)","v":180},{"$f":"SUM(G79:G80)","v":60},{"$f":"SUM(H79:H80)","v":120},{"$f":"SUM(I79:I80)","v":50},{"$f":"SUM(J79:J80)","v":70},null,72,null,null,{"$f":"O79","v":0},{"$f":"P79","v":0},0,0,0,0,120,0]
["МДК.06.01","Лесоразведение и воспроизводство лесов",null,9,null,{"$f":"ROUNDDOWN(H79*1.5,0)","v":180},{"$f":"F79-H79","v":60},{"$f":"SUM(O79:V79)","v":120},50,70,null,null,null,null,null,null,null,null,null,null,120]
["УП.06","Учебная практика",null,null,null,null,null,null,null,null,null,36,null,null,null,null,null,null,null,36]
["ПП.06","Производственная практика",9,null,null,null,null,null,null,null,null,{"$f":"SUM(M81:V81)","v":36},null,null,null,null,null,null,null,null,36]
["ПМ.07","Организация и   проведение мероприятий по  охране и защите лесов",null,null,"10(к)",{"$f":"SUM(F83:F83)","v":222},{"$f":"SUM(G83:G83)","v":74},{"$f":"SUM(H83:H83)","v":148},{"$f":"SUM(I83:I83)","v":118},{"$f":"SUM(J83:J83)","v":30},null,72,null,null,{"$f":"O83","v":0},{"$f":"P83","v":0},0,0,0,0,78,70]
["МДК.07.01","Охрана \nи защита лесов\n",null,10,null,{"$f":"ROUNDDOWN(H83*1.5,0)","v":222},{"$f":"F83-H83","v":74},{"$f":"SUM(O83:V83)","v":148},118,30,null,null,null,null,null,null,null,null,null,null,78,70]
["УП.07","Учебная практика",null,null,null,null,null,null,null,null,null,{"$f":"SUM(M84:W84)","v":36},null,null,null,null,null,null,null,null,null,36]
["ПП.07","Производственная практика",10,null,null,null,null,null,null,null,null,{"$f":"SUM(M85:W85)","v":36},null,null,null,null,null,null,null,null,null,36]
["ПМ.08","Организация   использования лесов",null,null,"8 (к)",{"$f":"SUM(F87:F88)","v":492},{"$f":"SUM(G87:G88)","v":164},{"$f":"SUM(H87:H88)","v":328},{"$f":"SUM(I87:I88)","v":222},{"$f":"SUM(J87:J88)","v":106},null,72,null,null,{"$f":"O87+O88","v":0},{"$f":"P87+P88","v":0},0,102,78,148,0,0]
["МДК.08.01","Заготовка древесины и  других лесных  ресурсов",7,null,null,270,90,180,120,60,null,null,null,null,null,null,null,102,78]
["МДК.08.02","Использование лесов для осуществления рекреационной деятельности",8,null,null,222,74,148,102,46,null,null,null,null,null,null,null,null,null,148]
["УП.08","Учебная практика",7,null,null,null,null,null,null,null,null,{"$f":"SUM(M89:W89)","v":36},null,null,null,null,null,36]
["ПП.08","Производственная практика",8,null,null,null,null,null,null,null,null,{"$f":"SUM(M90:W90)","v":36},null,null,null,null,null,null,null,36]
["ПМ.09","Организация и проведение работ по лесоустройству и таксации",null,null,"10(к)",{"$f":"SUM(F92:F93)","v":192},{"$f":"SUM(G92:G93)","v":64},{"$f":"SUM(H92:H93)","v":128},{"$f":"SUM(I92:I93)","v":88},{"$f":"SUM(J92:J93)","v":40},null,72,null,null,{"$f":"O92+O93","v":0},{"$f":"P92+P93","v":0},0,0,18,32,46,32]
["МДК.09.01","Лесная таксация",null,10,null,{"$f":"H92*1.5","v":96},{"$f":"F92-H92","v":32},{"$f":"SUM(N92:V92)","v":64},44,20,null,null,null,null,null,null,null,null,null,null,32,32]
["МДК.09.02","Лесоустройство",null,null,9,{"$f":"H93*1.5","v":96},{"$f":"F93-H93","v":32},{"$f":"SUM(N93:V93)","v":64},44,20,null,null,null,null,null,null,null,null,18,32,14]
["УП.09","Учебная практика",null,null,null,null,null,null,null,null,null,{"$f":"SUM(M94:W94)","v":36},null,null,null,null,null,null,36]
["ПП.09","Производственная практика",null,null,null,null,null,null,null,null,null,36,null,null,null,null,null,null,null,36]
["ПМ.10","Организация работы  структурного подразделения",null,null,"10(к)",{"$f":"SUM(F97)","v":213},71,{"$f":"SUM(H97)","v":142},{"$f":"SUM(I97)","v":112},{"$f":"SUM(J97)","v":30},null,36,null,null,{"$f":"O97","v":0},{"$f":"P97","v":0},0,0,0,0,84,58]
["МДК.10.01","Основы управления структурным подразделением ",null,10,null,{"$f":"H97*1.5","v":213},71,{"$f":"SUM(M97:V97)","v":142},112,30,null,null,null,null,null,null,null,null,null,null,84,58]
["ПП.10","Производственная практика",9,null,null,null,null,null,null,null,null,36,null,null,null,null,null,null,null,null,36]
["Всего",null,null,null,null,{"$f":"SUM(F38+F34+F28+F14)","v":6534},{"$f":"SUM(G38+G34+G28+G14)","v":2178},{"$f":"SUM(H38+H34+H28+H14)","v":5760},{"$f":"SUM(I38+I34+I28+I14)","v":2206},{"$f":"SUM(J38+J34+J28+J14)","v":2150},60,900,{"$f":"SUM(M15:M98)","v":612},792,{"$f":"O103+O105+O106","v":612},{"$f":"P103+P105+P106","v":864},576,864,576,864,576,{"$f":"V103+V105+V106","v":612}]
["Кол-во часов в неделю",null,null,null,null,null,null,null,null,null,null,null,{"$f":"SUM(M15:M26)/M11","v":36},{"$f":"SUM(N15:N26)/N11","v":36},{"$f":"O99/O10","v":36},{"$f":"P99/P10","v":36},36,36,36,36,36,36]
["ПДП","Преддипломная практика ",null,null,null,null,null,null,null,null,null,null,null,null,null,null,null,null,null,null,null,288]
["ГИА","Государственная итоговая аттестация",null,null,null,null,null,null,null,null,null,null,null,null,null,null,null,null,null,null,null,6]
["Консультации на учебную группу по 100 часов в год (всего 500 час.)",null,null,null,null,null,null,"Всего","дисциплин и МДК",null,null,null,{"$f":"M99-M105-M106","v":612},{"$f":"N99-N105-N106","v":792},{"$f":"O27","v":612},{"$f":"P27","v":792},468,720,360,648,504,252]
[]
["Государственная (итоговая) аттестация 216 часов",null,null,null,null,null,null,null,"учебной практики",null,null,null,{"$f":"M89+M84+M80+M76+M68+M64+M60","v":0},0,{"$f":"O89+O84+O80+O76+O68+O64+O60+O94","v":0},{"$f":"P89+P84+P80+P76+P68+P64+P60+P94","v":72},0,144,108,36,0,36]
["Промежуточная аттестация (9 недель) - 324 часа",null,null,null,null,null,null,null,"производств. практика/преддипломная практика",null,null,null,{"$f":"M90+M85+M81+M77+M72+M65+M61+M69","v":0},0,{"$f":"O90+O85+O81+O77+O72+O65+O61+O69+O95+O98","v":0},{"$f":"P90+P85+P81+P77+P72+P65+P61+P69+P95+P98","v":0},108,0,108,180,72,{"$f":"V90+V85+V81+V77+V72+V65+V61+V69+V95+V98+V101","v":324}]
["1.1. Дипломный проект (работа)",null,null,null,null,null,null,null,"экзаменов",null,null,null,"-",3,"-",5,2,1,2,2,2,1]
["Выполнение дипломного проекта (работы) с 18.05 по 14.06 (всего 4 нед.)",null,null,null,null,null,null,null,"диф.зачетов",null,null,null,"-",9,9,1,4,3,4,0,1,5]
["Защита дипломного проекта (работы)  с 15.06 по 28.06 (всего 2)        ",null,null,null,null,null,null,null,"зачетов",null,null,null,"-","-","-","-",1,"-",4,2,2,1]

{"sheet":"Лист3","index":3,"n_rows":8,"n_cols":10,"rows_kept":8,"cut":false,"hidden":true,"merged":[[0,9,0,36]]}
[null,null,1,5]
["очная",null,2,10,"основного общего образования"]
["заочная",null,3,null,"начального профессионального образования",null,null,null,null,"по программе базовой подготовки"]
["очно-заочная",null,4,null,"среднего (полного) общего образования",null,null,null,null,"по программе углубленной подготовки"]
[null,null,5]
[null,null,6]
[null,null,0,null,null,null,null,null,null,"по  специальности среднего профессионального образования"]
[null,null,null,null,null,null,null,null,null,"по  профессии начального профессионального образования"]

{"sheet":"Перечень кабинетов","index":4,"n_rows":43,"n_cols":2,"rows_kept":43,"cut":false,"hidden":false,"merged":[]}
[null,"Перечень кабинетов, лабораторий, мастерских и др. для подготовки"]
[null," по специальности СПО"]
["№","Наименование"]
[null,"Кабинеты:"]
[1,"гуманитарных и социально-экономических дисциплин;"]
[2,"иностранного языка;"]
[3,"педагогики и психологии;"]
[4,"методики профессионального обучения (по отраслям);"]
[5,"математики;"]
[6,"информатики;"]
[7,"автоматизированных информационных систем;"]
[8,"инженерной графики;"]
[9,"технической механики;"]
[10,"древесиноведения и материаловедения;"]
[11,"метрологии, стандартизации и сертификации;"]
[12,"электротехники и электроники;"]
[13,"правового обеспечения профессиональной деятельности;"]
[14,"экономики организации;"]
[15,"безопасности жизнедеятельности;"]
[16,"гидротермической обработки и консервирования древесины; "]
[17,"лесопильного производства;"]
[18,"мебельного и столярно-строительного производств; "]
[19,"фанерного, плитного и других деревообрабатывающих производств."]
[null,"Лаборатории:"]
[1,"информатики и информационно-коммуникационных технологий;"]
[2,"организации технологического процесса (по отраслям)."]
[3,"технической механики;"]
[4,"древесиноведения и материаловедения;"]
[5,"электротехники, электроники и автоматизации;"]
[6,"режущего инструмента деревообрабатывающего производства; "]
[7,"технологического оборудования деревообрабатывающего производства."]
[null,"Мастеские:"]
[1,"учебные мастерские;"]
[2,"полигоны для освоения рабочей профессии или специальности (по отраслям) по профилю подготовки;"]
[3,"студии технического творчества."]
[4,"деревообработки. "]
[null,"Спортивный комплекс:"]
[1,"Спортивный зал"]
[2,"Открытый стадион широкого профиля с элементами полосы препятствий"]
[3,"Стрелковый тир (в любой модификации, включая электронный) или место для стрельбы"]
[null," Залы:"]
[1,"Библиотека, читальный зал с выходом в сеть Интернет"]
[2,"Актовый зал"]

{"sheet":"Календарный график","index":5,"n_rows":40,"n_cols":54,"rows_kept":40,"cut":false,"hidden":false,"merged":[[15,3,15,27],[1,9,1,46],[3,1,5,1],[3,2,3,5],[3,7,3,9],[3,11,3,14],[3,15,3,18],[3,20,3,22],[3,24,3,27],[3,28,3,31],[3,33,3,35],[3,37,3,40],[3,41,3,44],[3,46,3,48],[3,50,3,53],[12,49,12,53],[17,39,17,40],[17,42,17,48],[19,4,19,5],[19,7,19,14],[19,17,19,18],[19,20,19,28],[19,29,19,30],[19,32,19,38],[17,4,17,5],[17,7,17,14],[17,17,17,18],[17,20,17,28],[17,29,17,30],[17,32,17,35]]}
[]
[null,null,null,null,null,null,null,null,null,"Календарный график учебного процесса"]
[]
[null,"Курс","Сентябрь",null,null,null,null,"Октябрь",null,null,null,"Ноябрь",null,null,null,"Декабрь",null,null,null,null,"Январь",null,null,null,"Февраль",null,null,null,"Март",null,null,null,null,"Апрель",null,null,null,"Май",null,null,null,"Июнь",null,null,null,null,"Июль",null,null,null,"Август"]
[null,null,2,9,16,23,30,7,14,21,28,4,11,18,25,2,9,16,23,30,6,13,20,27,3,10,17,24,10,17,24,23,31,7,14,21,28,5,12,19,26,2,9,16,23,30,7,14,21,28,4,11,18,25]
[null,null,8,15,22,29,6,13,20,27,3,10,17,24,1,8,15,22,29,5,12,19,26,2,9,16,23,2,16,23,30,29,6,13,20,27,4,11,18,25,1,8,15,22,29,6,13,20,27,3,10,17,24,31]
[null,1,null,null,null,null,null,null,null,null,null,null,null,null,null,null,null,null,null,"-","-",null,null,null,null,null,null,null,null,null,null,null,null,null,null,null,null,null,null,null,null,null,null,"А","А","-","-","-","-","-","-","-","-","-"]
[null,2,null,null,null,null,null,null,null,null,null,null,null,null,null,null,null,null,null,"-","-",null,null,null,null,null,null,null,null,null,null,null,null,null,null,null,null,null,null,null,null,null,null,"А","ОУ","ОУ","-","-","-","-","-","-","-","-"]
[null,3,null,null,null,null,null,null,null,null,null,null,null,null,null,"ПП","ПП","ПП","А","-","-",null,null,null,null,null,null,null,null,null,null,null,null,null,null,null,null,null,null,null,null,"А","ОУ","ОУ","ОУ","ОУ","-","-","-","-","-","-","-","-"]
[null,4,null,null,null,null,null,null,"ОУ","ОУ","ОУ",null,null,null,null,"ПП","ПП","ПП","А","-","-",null,null,null,null,null,null,null,null,null,null,null,null,null,null,null,null,null,null,"ОУ","ПП","ПП","ПП","ПП","ПП","А"]
[null,5,null,null,null,null,null,null,null,null,null,null,null,null,null,null,"ПП","ПП","А","-","-",null,null,null,null,null,null,null,"ОУ","ПП","А","ПД","ПД","ПД","ПД","ПД","ПД","ПД","ПД","ИА","ИА","ИА","ИА","ИА","ИА"]
[null,null,1,2,3,4,5,6,7,8,9,10,11,12,13,14,15,16,17,18,19,20,21,22,23,24,25,26,27,28,29,30,31,32,33,34,35,36,37,38,39,40,41,42,43,44,45,46,47,48,49,50,51,52]
[null,null,1,2,3,4,5,6,7,8,9,10,11,12,13,14,15,16,17,null,null,1,2,3,4,5,6,7,8,9,10,11,12,13,14,15,16,17,18,19,20,21,22,23,24,25,26]
[]
[]
[null,null,null,"Условные обозначения"]
[]
[null,null,null,null,null,null,"-","Теоретическое обучение",null,null,null,null,null,null,null,null,null,"ПП",null,"-","Производственная практика",null,null,null,null,null,null,null,null,"-",null,"-","Каникулы",null,null,null,null,null,null,"ПД",null,"-","Преддипломная практика"]
[]
[null,null,null,null,"ОУ",null,"-","Учебная практика",null,null,null,null,null,null,null,null,null,"А",null,"-","Промежуточная атестация",null,null,null,null,null,null,null,null,"ИА",null,"-","Итоговая аттестация"]
[]
[]
[]
[]
[]
[null,null,null,null,null,null,null,null,null,null,null,null,null,null,null,null,null,null,null,null,null,null,null,null,null,null,null,null,null,null,null,null,null,null,null,null,","]
[]
[]
[]
[]
[]
[]
[]
[]
[]
[]
[]
[]
[]
[null,null,null,null,null,null,null,null,null,null,null,null,null,null,null,null,null,null,null,null,null,null,null,null,null,null,null,null,null,null,null,null,null,null,null,null,","]